fUST/lending_fUST_20260110
["ID","MTS","AMOUNT","RATE_DAILY","PERIOD"]
[401210564,1768047038803,-500.0,0.00033445,7]
[401210565,1768047038813,-500.0,0.00033445,7]
[401210566,1768047038823,-500.0,0.00033445,7]
[401210567,1768047038833,-565.12015369,0.00033445,7]
[401210568,1768047038843,-500.0,0.00033445,7]
[401210569,1768047038853,-500.0,0.00033445,7]
[401210570,1768047038863,-500.0,0.00033445,7]
[401210571,1768047038873,-500.0,0.00033445,7]
[401210572,1768047038884,-500.0,0.00033445,7]
[401210573,1768047038894,-500.0,0.00033445,7]
[401210574,1768047038903,-500.0,0.00033445,7]
[401210575,1768047038913,-500.0,0.00033445,7]
[401210576,1768047038923,-500.0,0.00033445,7]
[401210577,1768047038933,-500.0,0.00033445,7]
[401210578,1768047038943,-500.0,0.00033445,7]
[401210579,1768047038954,-500.0,0.00033445,7]
[401210580,1768047038964,-500.0,0.00033445,7]
[401210581,1768047038975,-500.0,0.00033445,7]
[401210582,1768047038985,-267.09480604,0.00033446,7]
[401210583,1768047038995,-214.70377894,0.00033446,7]
[401210584,1768047039005,-500.0,0.00033446,7]
[401210585,1768047039016,-500.0,0.00033446,7]
[401210586,1768047039026,-500.0,0.00033446,7]
[401210587,1768047039037,-500.0,0.00033446,7]
[401210588,1768047039046,-500.0,0.00033446,7]
[401210589,1768047039056,-500.0,0.00033446,7]
[401210590,1768047039066,-500.0,0.00033446,7]
[401210591,1768047039076,-500.0,0.00033446,7]
[401210592,1768047039085,-500.0,0.00033446,7]
[401210593,1768047039095,-500.0,0.00033446,7]
[401210594,1768047039104,-500.0,0.00033446,7]
[401210595,1768047039113,-500.0,0.00033446,7]
[401210596,1768047039123,-500.0,0.00033446,7]
[401210597,1768047039132,-574.54062394,0.00033446,7]
[401210598,1768047039141,-500.0,0.00033446,7]
[401210599,1768047039150,-500.0,0.00033446,7]
[401210600,1768047039159,-500.0,0.00033446,7]
[401210601,1768047039168,-500.0,0.00033446,7]
[401210602,1768047039178,-500.0,0.00033446,7]
[401210603,1768047039188,-200.0,0.00033446,7]
[401210604,1768047039197,-500.0,0.00033446,7]
[401210605,1768047039206,-500.0,0.00033446,7]
[401210606,1768047039216,-782968.68542905,0.00033447,2]
[401210623,1768047039919,-428.0,0.00033445,30]
[401210625,1768047039928,-1448.0,0.00033445,30]
[401210627,1768047039938,-10653.62013719,0.00033447,2]
[401210629,1768047039949,-3435.90441041,0.00033447,2]
[401210632,1768047039971,-4858.63485901,0.00033447,2]
[401211103,1768047045076,-234.39,0.0001324,2]
[401211105,1768047045085,-351.58,0.00013842,2]
[401211107,1768047045094,-435.0,0.00033447,30]
[401211109,1768047045103,-4788.80013,0.00033447,2]
[401211113,1768047045131,-6770.58491379,0.00033447,2]
[401211176,1768047045723,-14645.62913756,0.00033447,2]
[401211188,1768047045829,-294.85659924,0.00033447,30]
[401211749,1768047178487,10000.01,0.0001,2]
[401211750,1768047178513,49690.0,0.0001,2]
[401211751,1768047189357,-300.0,9.999e-05,2]
[401211756,1768047333187,155.5966187,0.00030136,120]
[401211757,1768047350940,193.66,8.698e-05,2]
[401211793,1768047649318,170.8763305,5.087e-05,2]
[401211825,1768047852210,155.0,8.246e-05,2]
[401211889,1768048238055,-300.0,9.997e-05,2]
[401211890,1768048238067,-300.0,9.997e-05,2]
[401211891,1768048238077,-300.0,9.997e-05,2]
[401211892,1768048238087,-560.0,9.997e-05,2]
[401211893,1768048238098,-150.0,9.997e-05,2]
[401211894,1768048238109,-300.0,9.998e-05,2]
[401211895,1768048238119,-1200.0,9.998e-05,2]
[401211896,1768048238130,-500.0,9.999e-05,2]
[401211897,1768048238140,-500.0,9.999e-05,2]
[401211898,1768048238150,-367.3378341,9.999e-05,2]
[401211899,1768048238160,-500.0,9.999e-05,2]
[401211900,1768048238170,-500.0,9.999e-05,2]
[401211901,1768048238179,-500.0,9.999e-05,2]
[401211902,1768048238189,-500.0,9.999e-05,2]
[401211903,1768048238199,-500.0,9.999e-05,2]
[401211905,1768048238208,-500.0,9.999e-05,2]
[401211906,1768048238218,-500.0,9.999e-05,2]
[401211907,1768048238227,-500.0,9.999e-05,2]
[401211908,1768048238237,-500.0,9.999e-05,2]
[401211909,1768048238247,-500.0,9.999e-05,2]
[401211910,1768048238256,-500.0,9.999e-05,2]
[401211911,1768048238266,-500.0,9.999e-05,2]
[401211912,1768048238276,-500.0,9.999e-05,2]
[401211913,1768048238286,-500.0,9.999e-05,2]
[401211914,1768048238296,-500.0,9.999e-05,2]
[401211915,1768048238306,-500.0,9.999e-05,2]
[401211916,1768048238316,-500.0,9.999e-05,2]
[401211917,1768048238326,-500.0,9.999e-05,2]
[401211918,1768048238336,-500.0,9.999e-05,2]
[401211919,1768048238349,-500.0,9.999e-05,2]
[401211920,1768048238364,-500.0,9.999e-05,2]
[401211921,1768048238374,-500.0,9.999e-05,2]
[401211922,1768048238384,-398.25821006,9.999e-05,2]
[401211923,1768048238394,-500.0,9.999e-05,2]
[401211924,1768048238404,-500.0,9.999e-05,2]
[401211925,1768048238414,-500.0,9.999e-05,2]
[401211926,1768048238424,-407.58693481,9.999e-05,2]
[401211927,1768048238434,-454.69346583,9.999e-05,2]
[401211928,1768048238443,-500.0,9.999e-05,2]
[401211929,1768048238453,-500.0,9.999e-05,2]
[401211930,1768048238462,-500.0,9.999e-05,2]
[401211931,1768048238471,-500.0,9.999e-05,2]
[401211932,1768048238482,-500.0,9.999e-05,2]
[401211933,1768048238492,-500.0,9.999e-05,2]
[401211934,1768048238502,-500.0,9.999e-05,2]
[401211935,1768048238511,-500.0,9.999e-05,2]
[401211936,1768048238521,-500.0,9.999e-05,2]
[401211937,1768048238531,-500.0,9.999e-05,2]
[401211938,1768048238540,-500.0,9.999e-05,2]
[401211939,1768048238550,-500.0,9.999e-05,2]
[401211940,1768048238560,-500.0,9.999e-05,2]
[401211941,1768048238570,-500.0,9.999e-05,2]
[401211942,1768048238581,-500.0,9.999e-05,2]
[401211943,1768048238591,-500.0,9.999e-05,2]
[401211944,1768048238600,-500.0,9.999e-05,2]
[401211945,1768048238610,-500.0,9.999e-05,2]
[401211946,1768048238620,-257.5606343,9.999e-05,2]
[401211947,1768048238630,-16467.88297776,0.0001,2]
[401211948,1768048238643,-31485.81314969,0.0001,2]
[401211979,1768048240232,-250.0,0.0001,2]
[401213787,1768049438285,-300.0,9.529e-05,2]
[401213789,1768049438298,-300.0,9.529e-05,2]
[401213791,1768049438308,-553.0,9.529e-05,2]
[401213793,1768049438319,-300.0,9.529e-05,2]
[401213795,1768049438329,-1200.0,9.529e-05,2]
[401213797,1768049438339,-572.01904051,9.53e-05,2]
[401213799,1768049438352,-13230.0,9.53e-05,2]
[401215027,1768049469187,13.22097724,0.00023893,110]
[401215028,1768049469210,138.58863742,0.00023893,110]
[401215039,1768049700467,1036.6,0.00030137,120]
[401215055,1768049950892,157.0,8.3e-07,2]
[401215059,1768049974742,9323.4736695,8.949e-05,2]
[401215060,1768049974764,7191.482884,8.949e-05,2]
[401215092,1768050406384,550.63,6.433e-05,2]
[401215093,1768050406784,1101.26,6.739e-05,2]
[401215094,1768050407190,1651.89,7.046e-05,2]
[401215095,1768050407621,2202.52,7.352e-05,2]
[401215096,1768050408055,2753.15,7.658e-05,2]
[401215097,1768050408450,1740.56,7.965e-05,2]
[401215098,1768050408475,1563.22,7.965e-05,2]
[401215099,1768050408911,3854.41,8.271e-05,2]
[401215100,1768050409280,4405.04,8.577e-05,2]
[401215101,1768050409685,177.34,8.884e-05,2]
[401215102,1768050409711,4778.33,8.884e-05,2]
[401215123,1768050483063,235.27,6.326e-05,2]
[401215124,1768050483507,470.54,6.627e-05,2]
[401215125,1768050483910,705.81,6.928e-05,2]
[401215126,1768050484375,941.08,7.229e-05,2]
[401215128,1768050485243,1176.35,7.53e-05,2]
[401215129,1768050485676,1411.62,7.832e-05,2]
[401215130,1768050486065,281.01,8.133e-05,2]
[401215131,1768050486089,1365.87,8.133e-05,2]
[401215132,1768050486465,1882.15,8.434e-05,2]
[401215134,1768050486869,2117.42,8.735e-05,2]
[401215135,1768050487368,2352.69,9.037e-05,2]
[401215192,1768050559102,150.0,6.406e-05,2]
[401215194,1768050559522,150.0,6.711e-05,2]
[401215195,1768050559918,211.74,7.017e-05,2]
[401215196,1768050560364,282.32,7.322e-05,2]
[401215197,1768050560790,352.9,7.627e-05,2]
[401215199,1768050561175,423.48,7.932e-05,2]
[401215200,1768050561629,494.07,8.237e-05,2]
[401215201,1768050562082,217.37,8.542e-05,2]
[401215202,1768050562105,347.28,8.542e-05,2]
[401215203,1768050562495,635.23,8.847e-05,2]
[401215334,1768050632280,-548.0,9.152e-05,2]
[401215337,1768050632290,-150.0,9.34e-05,2]
[401215339,1768050632300,-300.0,9.528e-05,2]
[401215341,1768050632310,-300.0,9.529e-05,2]
[401215343,1768050632319,-300.0,9.529e-05,2]
[401215345,1768050632328,-300.0,9.529e-05,2]
[401215347,1768050632339,-1200.0,9.529e-05,2]
[401215349,1768050632349,-3951.87453614,9.53e-05,2]
[401215527,1768050634397,150.0,6.4e-05,2]
[401215569,1768050634791,150.0,6.705e-05,2]
[401215620,1768050635280,150.0,7.01e-05,2]
[401215664,1768050635709,150.0,7.314e-05,2]
[401215679,1768050636690,150.0,7.619e-05,2]
[401215722,1768050637121,174.2,7.924e-05,2]
[401215766,1768050637604,203.24,8.229e-05,2]
[401215778,1768050638486,232.27,8.533e-05,2]
[401215779,1768050638500,-5449.62274866,9.53e-05,2]
[401215780,1768050638515,-4303.51913438,9.53e-05,2]
[401215781,1768050638528,-1974.62572884,9.53e-05,2]
[401215804,1768050638936,261.31,8.838e-05,2]
[401215835,1768050640606,-290.34,9.143e-05,2]
[401215837,1768050640617,-608.88,9.53e-05,2]
[401215894,1768050647386,-2206.11478538,9.53e-05,2]
[401215895,1768050647398,-14996.97061609,9.53e-05,2]
[401215896,1768050647408,-150.0,9.725e-05,2]
[401215897,1768050647418,-150.0,9.725e-05,2]
[401215898,1768050647427,-150.0,9.725e-05,2]
[401215899,1768050647436,-150.0,9.725e-05,2]
[401215900,1768050647446,-150.0,9.725e-05,2]
[401215901,1768050647456,-150.0,9.725e-05,2]
[401215902,1768050647465,-150.0,9.725e-05,2]
[401215903,1768050647475,-17.97330256,9.725e-05,2]
[401215904,1768050647486,-132.02669744,9.725e-05,2]
[401215905,1768050647497,-150.0,9.725e-05,2]
[401215906,1768050647506,-236.27330256,9.798e-05,2]
[401215941,1768050918684,150.0,6.344e-05,2]
[401215942,1768050919071,150.0,6.646e-05,2]
[401215943,1768050919475,156.0,6.948e-05,2]
[401215944,1768050919934,208.0,7.25e-05,2]
[401215945,1768050920272,260.0,7.552e-05,2]
[401215946,1768050920842,312.0,7.854e-05,2]
[401215947,1768050921109,364.0,8.156e-05,2]
[401215948,1768050921505,416.0,8.458e-05,2]
[401215949,1768050921953,468.0,8.76e-05,2]
[401215970,1768050989990,150.0,6.297e-05,2]
[401215971,1768050990462,150.0,6.597e-05,2]
[401215972,1768050990869,150.0,6.897e-05,2]
[401215973,1768050991272,150.0,7.197e-05,2]
[401215974,1768050992181,150.0,7.497e-05,2]
[401215975,1768050992628,150.0,7.796e-05,2]
[401215976,1768050993023,150.0,8.096e-05,2]
[401215977,1768050993511,163.09,8.396e-05,2]
[401215978,1768050994010,183.47,8.696e-05,2]
[401215979,1768050994302,203.86,8.996e-05,2]
[401216036,1768051302235,222.34,0.00030137,120]
[401216142,1768051832461,-300.0,9.724e-05,2]
[401216143,1768051832471,-556.0,9.724e-05,2]
[401216144,1768051832481,-150.0,9.724e-05,2]
[401216145,1768051832491,-150.0,9.725e-05,2]
[401216146,1768051832500,-150.0,9.725e-05,2]
[401216147,1768051832511,-150.0,9.725e-05,2]
[401216148,1768051832529,-150.0,9.725e-05,2]
[401216149,1768051832538,-150.0,9.725e-05,2]
[401216150,1768051832547,-150.0,9.725e-05,2]
[401216151,1768051832557,-150.0,9.725e-05,2]
[401216152,1768051832566,-150.0,9.725e-05,2]
[401216153,1768051832575,-150.0,9.725e-05,2]
[401216154,1768051832726,-150.0,9.725e-05,2]
[401216155,1768051832743,-150.0,9.725e-05,2]
[401216156,1768051832752,-150.0,9.725e-05,2]
[401216157,1768051832762,-150.0,9.725e-05,2]
[401216158,1768051832771,-150.0,9.725e-05,2]
[401216159,1768051832780,-150.0,9.725e-05,2]
[401216160,1768051832790,-150.0,9.725e-05,2]
[401216161,1768051832799,-150.0,9.725e-05,2]
[401216162,1768051832808,-1187.76799024,9.798e-05,2]
[401216163,1768051832817,-150.0,9.862e-05,2]
[401216164,1768051832827,-150.0,9.862e-05,2]
[401216165,1768051832836,-150.0,9.862e-05,2]
[401216166,1768051832846,-150.0,9.862e-05,2]
[401216167,1768051832855,-150.0,9.862e-05,2]
[401216168,1768051832865,-150.0,9.862e-05,2]
[401216169,1768051832875,-150.0,9.862e-05,2]
[401216170,1768051832885,-150.0,9.862e-05,2]
[401216171,1768051832895,-150.0,9.862e-05,2]
[401216172,1768051832905,-150.0,9.862e-05,2]
[401216173,1768051832915,-150.0,9.862e-05,2]
[401216174,1768051832924,-278.58612381,9.999e-05,2]
[401216175,1768051832934,-150.0,9.999e-05,2]
[401216176,1768051832943,-150.0,9.999e-05,2]
[401216177,1768051832952,-150.0,9.999e-05,2]
[401216178,1768051832963,-150.0,9.999e-05,2]
[401216179,1768051832972,-150.0,9.999e-05,2]
[401216180,1768051832981,-150.0,9.999e-05,2]
[401216181,1768051832991,-150.0,9.999e-05,2]
[401216182,1768051833000,-150.0,9.999e-05,2]
[401216184,1768051833010,-272.64534256,9.999e-05,2]
[401216186,1768051833019,-500.0,9.999e-05,2]
[401216187,1768051833028,-500.0,9.999e-05,2]
[401216189,1768051833037,-500.0,9.999e-05,2]
[401216191,1768051833047,-500.0,9.999e-05,2]
[401216193,1768051833056,-500.0,9.999e-05,2]
[401216194,1768051833065,-500.0,9.999e-05,2]
[401216195,1768051833075,-500.0,9.999e-05,2]
[401216197,1768051833084,-500.0,9.999e-05,2]
[401216198,1768051833092,-500.0,9.999e-05,2]
[401216199,1768051833101,-448.63683645,9.999e-05,2]
[401216200,1768051833111,-500.0,9.999e-05,2]
[401216201,1768051833120,-500.0,9.999e-05,2]
[401216202,1768051833128,-500.0,9.999e-05,2]
[401216203,1768051833137,-500.0,9.999e-05,2]
[401216204,1768051833146,-500.0,9.999e-05,2]
[401216205,1768051833156,-491.68019172,9.999e-05,2]
[401216211,1768051838578,-8.31980828,9.999e-05,2]
[401216212,1768051838587,-453.66519172,9.999e-05,2]
[401216213,1768051838600,-46.33480828,9.999e-05,2]
[401216214,1768051838610,-500.0,9.999e-05,2]
[401216215,1768051838621,-500.0,9.999e-05,2]
[401216216,1768051838630,-500.0,9.999e-05,2]
[401216217,1768051838641,-379.45661555,9.999e-05,2]
[401216218,1768051838650,-500.0,9.999e-05,2]
[401216219,1768051838660,-379.45661555,9.999e-05,2]
[401216221,1768051838671,-500.82274639,9.999e-05,2]
[401216223,1768051838680,-564.686617,9.999e-05,2]
[401216224,1768051838690,-420.28913391,9.999e-05,2]
[401216225,1768051838701,-79.71086609,9.999e-05,2]
[401216226,1768051838711,-500.0,9.999e-05,2]
[401216227,1768051838720,-500.0,9.999e-05,2]
[401216228,1768051838729,-2752.93832056,0.0001,2]
[401216229,1768051838741,-2000.4707467,0.0001,2]
[401216538,1768051846567,-2291.91448782,0.0001,2]
[401216539,1768051846625,-1801.77212347,0.0001,2]
[401216540,1768051847234,-286.74035999,0.0001,2]
[401216711,1768051978074,150.0,6.126e-05,2]
[401216712,1768051978477,150.0,6.418e-05,2]
[401216713,1768051978913,165.9,6.709e-05,2]
[401216714,1768051979333,221.2,7.001e-05,2]
[401216715,1768051979727,276.5,7.293e-05,2]
[401216716,1768051980136,331.8,7.584e-05,2]
[401216718,1768051980680,387.1,7.876e-05,2]
[401216719,1768051981068,442.4,8.168e-05,2]
[401216721,1768051981473,497.7,8.46e-05,2]
[401216724,1768051981928,552.99,8.751e-05,2]
[401216754,1768052049413,136.47,7.127e-05,2]
[401216755,1768052049440,13.53,7.127e-05,2]
[401216756,1768052049809,150.0,7.466e-05,2]
[401216758,1768052050212,150.0,7.805e-05,2]
[401216759,1768052050630,150.0,8.145e-05,2]
[401216760,1768052051199,150.0,8.484e-05,2]
[401216762,1768052051625,150.0,8.824e-05,2]
[401216943,1768052693695,155.0,8.246e-05,2]
[401216979,1768053031683,-207.56089949,9.625e-05,2]
[401216980,1768053031692,-94.43910051,9.725e-05,2]
[401216982,1768053037803,-55.56089949,9.725e-05,2]
[401216983,1768053037812,-150.0,9.725e-05,2]
[401216984,1768053037823,-150.0,9.725e-05,2]
[401216985,1768053037833,-215.95644604,9.793e-05,2]
[401216986,1768053037842,-150.0,9.862e-05,2]
[401216987,1768053037853,-2589.68495628,9.996e-05,2]
[401217016,1768053039990,-901.32466091,9.996e-05,2]
[401217023,1768053040048,-16188.04592828,9.996e-05,2]
[401217025,1768053040059,-29064.85210893,9.996e-05,2]
[401217027,1768053040069,-338.72851364,9.999e-05,2]
[401217029,1768053040078,-500.0,9.999e-05,2]
[401217031,1768053040087,-500.0,9.999e-05,2]
[401217033,1768053040096,-500.0,9.999e-05,2]
[401217035,1768053040106,-500.0,9.999e-05,2]
[401217037,1768053040115,-500.0,9.999e-05,2]
[401217039,1768053040124,-500.0,9.999e-05,2]
[401217041,1768053040133,-500.0,9.999e-05,2]
[401217043,1768053040143,-500.0,9.999e-05,2]
[401217046,1768053040152,-500.0,9.999e-05,2]
[401217047,1768053040161,-330.1070166,9.999e-05,2]
[401217049,1768053040171,-500.0,9.999e-05,2]
[401217051,1768053040180,-500.0,9.999e-05,2]
[401217054,1768053040189,-500.0,9.999e-05,2]
[401217055,1768053040199,-500.0,9.999e-05,2]
[401217058,1768053040208,-500.0,9.999e-05,2]
[401217060,1768053040218,-500.0,9.999e-05,2]
[401217062,1768053040227,-500.0,9.999e-05,2]
[401217063,1768053040236,-500.0,9.999e-05,2]
[401217065,1768053040245,-500.0,9.999e-05,2]
[401217068,1768053040255,-500.0,9.999e-05,2]
[401217069,1768053040264,-500.0,9.999e-05,2]
[401217071,1768053040274,-500.0,9.999e-05,2]
[401217074,1768053040284,-500.0,9.999e-05,2]
[401217076,1768053040293,-500.0,9.999e-05,2]
[401217078,1768053040303,-500.0,9.999e-05,2]
[401217080,1768053040313,-500.0,9.999e-05,2]
[401217082,1768053040322,-500.0,9.999e-05,2]
[401217084,1768053040332,-500.0,9.999e-05,2]
[401217086,1768053040341,-500.0,9.999e-05,2]
[401217088,1768053040351,-500.0,9.999e-05,2]
[401217090,1768053040360,-500.0,9.999e-05,2]
[401217092,1768053040369,-500.0,9.999e-05,2]
[401217094,1768053040378,-500.0,9.999e-05,2]
[401217096,1768053040387,-500.0,9.999e-05,2]
[401217098,1768053040397,-500.0,9.999e-05,2]
[401217100,1768053040406,-391.24281475,9.999e-05,2]
[401217102,1768053040415,-500.0,9.999e-05,2]
[401217104,1768053040424,-500.0,9.999e-05,2]
[401217106,1768053040435,-500.0,9.999e-05,2]
[401217108,1768053040446,-500.0,9.999e-05,2]
[401217110,1768053040455,-500.0,9.999e-05,2]
[401217112,1768053040464,-500.0,9.999e-05,2]
[401217114,1768053040473,-500.0,9.999e-05,2]
[401217116,1768053040482,-500.0,9.999e-05,2]
[401217118,1768053040492,-165.30115477,9.999e-05,2]
[401217120,1768053040502,-500.0,9.999e-05,2]
[401217122,1768053040511,-272.07075961,9.999e-05,2]
[401217124,1768053040523,-500.0,9.999e-05,2]
[401217126,1768053040532,-250.0,9.999e-05,2]
[401217128,1768053040542,-5112.74245218,0.0001,2]
[401217348,1768053045318,-2218.93996727,0.0001,2]
[401217349,1768053045329,-454.12,0.0001,2]
[401217350,1768053045340,-650.58213628,0.0001,2]
[401217353,1768053046307,-2860.06685067,0.0001,2]
[401217362,1768053227127,150.0,7.027e-05,2]
[401217363,1768053227579,158.61,7.362e-05,2]
[401217364,1768053228020,237.91,7.696e-05,2]
[401217365,1768053228440,317.22,8.031e-05,2]
[401217366,1768053228851,396.52,8.365e-05,2]
[401217367,1768053229262,475.83,8.7e-05,2]
[401217368,1768053229683,555.13,9.035e-05,2]
[401217370,1768053299331,150.0,6.711e-05,2]
[401217371,1768053299812,150.0,7.03e-05,2]
[401217372,1768053300237,150.43,7.35e-05,2]
[401217373,1768053300653,200.57,7.669e-05,2]
[401217374,1768053301090,250.72,7.989e-05,2]
[401217376,1768053301512,300.86,8.308e-05,2]
[401217377,1768053301999,351.01,8.628e-05,2]
[401217379,1768053302362,401.15,8.948e-05,2]
[401217394,1768053382527,150.0,6.313e-05,2]
[401217395,1768053385447,150.0,6.613e-05,2]
[401217396,1768053385877,150.0,6.914e-05,2]
[401217397,1768053386392,150.0,7.215e-05,2]
[401217398,1768053386786,150.0,7.515e-05,2]
[401217403,1768053393645,176.86,8.116e-05,2]
[401217404,1768053394112,202.12,8.417e-05,2]
[401217405,1768053401455,453.6,0.00030137,120]
[401217406,1768053402368,252.65,9.018e-05,2]
[401217495,1768053503752,-2363.6605959,9.999e-05,2]
[401217496,1768053503779,-319.0,9.999e-05,2]
[401217497,1768053503805,-189317.3394041,0.0001,2]
[401217512,1768053604692,1733.74,5e-05,2]
[401217514,1768053605230,1720.15,5.1e-05,2]
[401217515,1768053605255,13.59,5.1e-05,2]
[401217523,1768053605796,1733.74,5.2e-05,2]
[401217525,1768053606377,1733.74,5.2e-05,2]
[401217526,1768053606955,1733.74,5.3e-05,2]
[401217527,1768053607532,1733.74,5.4e-05,2]
[401217528,1768053608182,1733.74,5.5e-05,2]
[401217529,1768053608819,1317.72,5.6e-05,2]
[401217530,1768053608844,416.02,5.6e-05,2]
[401217531,1768053609274,1733.74,5.7e-05,2]
[401217532,1768053609772,1733.74,5.7e-05,2]
[401217533,1768053610360,1733.74,5.8e-05,2]
[401217538,1768053610896,1733.74,5.9e-05,2]
[401217542,1768053611438,1733.74,6e-05,2]
[401217544,1768053612002,915.29,6.1e-05,2]
[401217545,1768053612054,818.45,6.1e-05,2]
[401217546,1768053612639,1733.74,6.2e-05,2]
[401217547,1768053613182,1733.74,6.2e-05,2]
[401217548,1768053613742,1733.74,6.3e-05,2]
[401217549,1768053614300,1733.74,6.4e-05,2]
[401217550,1768053614772,1733.74,6.5e-05,2]
[401217551,1768053615392,512.86,6.6e-05,2]
[401217552,1768053615452,1220.88,6.6e-05,2]
[401217553,1768053615951,1733.74,6.6e-05,2]
[401217554,1768053616521,1733.74,6.7e-05,2]
[401217555,1768053617079,1733.74,6.8e-05,2]
[401217556,1768053617737,1733.74,6.9e-05,2]
[401217557,1768053618370,1733.74,7e-05,2]
[401217558,1768053618840,1733.74,7.1e-05,2]
[401217559,1768053619320,1733.74,7.1e-05,2]
[401217560,1768053619899,1733.74,7.2e-05,2]
[401217561,1768053620567,1331.31,7.3e-05,2]
[401217562,1768053620621,402.43,7.3e-05,2]
[401217563,1768053621131,1733.74,7.4e-05,2]
[401217564,1768053621740,1733.74,7.5e-05,2]
[401217565,1768053622317,1733.74,7.6e-05,2]
[401217567,1768053622879,1733.74,7.6e-05,2]
[401217568,1768053623399,1733.74,7.7e-05,2]
[401217569,1768053623922,928.88,7.8e-05,2]
[401217570,1768053623983,804.86,7.8e-05,2]
[401217571,1768053624626,1733.74,7.9e-05,2]
[401217572,1768053625259,1733.74,8e-05,2]
[401217573,1768053625774,1733.74,8e-05,2]
[401217574,1768053626075,376.45,6.733e-05,2]
[401217575,1768053626401,1733.74,8.1e-05,2]
[401217576,1768053626480,752.89,7.053e-05,2]
[401217577,1768053626899,1129.34,7.374e-05,2]
[401217578,1768053627030,1.51,8.2e-05,2]
[401217579,1768053627090,1732.23,8.2e-05,2]
[401217580,1768053627334,1505.79,7.695e-05,2]
[401217581,1768053627609,1733.74,8.3e-05,2]
[401217582,1768053628073,1733.74,8.4e-05,2]
[401217583,1768053628254,1882.23,8.015e-05,2]
[401217584,1768053628676,1412.28,8.5e-05,2]
[401217585,1768053628731,321.46,8.5e-05,2]
[401217587,1768053628795,2258.68,8.336e-05,2]
[401217588,1768053629118,2635.12,8.656e-05,2]
[401217589,1768053629427,1733.74,8.5e-05,2]
[401217590,1768053629516,3011.57,8.977e-05,2]
[401217592,1768053629984,39.44,8.6e-05,2]
[401217593,1768053630035,1694.3,8.6e-05,2]
[401217594,1768053630615,1733.74,8.7e-05,2]
[401217595,1768053631181,1733.74,8.8e-05,2]
[401217596,1768053631862,1733.74,8.9e-05,2]
[401217597,1768053632436,1733.74,9e-05,2]
[401217599,1768053635265,1733.72,5e-05,2]
[401217611,1768053703751,448.73,6.211e-05,2]
[401217612,1768053704171,897.45,6.507e-05,2]
[401217613,1768053704577,1346.18,6.803e-05,2]
[401217614,1768053705002,1794.9,7.099e-05,2]
[401217615,1768053705463,2243.63,7.395e-05,2]
[401217616,1768053705871,2692.35,7.69e-05,2]
[401217617,1768053706328,576.77,7.986e-05,2]
[401217618,1768053706393,2564.31,7.986e-05,2]
[401217619,1768053707251,3589.8,8.282e-05,2]
[401217620,1768053707697,3845.9,8.578e-05,2]
[401217621,1768053707756,192.63,8.578e-05,2]
[401217622,1768053708119,4487.25,8.873e-05,2]
[401217628,1768053782641,150.0,6.373e-05,2]
[401217629,1768053783056,291.6,6.677e-05,2]
[401217630,1768053783485,437.41,6.98e-05,2]
[401217631,1768053783901,583.21,7.284e-05,2]
[401217632,1768053784307,729.01,7.587e-05,2]
[401217633,1768053784751,874.81,7.891e-05,2]
[401217634,1768053785209,1020.61,8.194e-05,2]
[401217635,1768053786133,1166.41,8.497e-05,2]
[401217636,1768053786594,67.07,8.801e-05,2]
[401217637,1768053786645,1245.15,8.801e-05,2]